{"text_format":"3","workbook":"xlsx","n_sheets":1,"sheets":["Personiskais ikmēneša budžets"],"read":"whole","date_system":"1900"}

{"sheet":"Personiskais ikmēneša budžets","index":0,"n_rows":62,"n_cols":10,"rows_kept":62,"merged":[[0,1,0,9],[2,1,4,1],[2,2,2,3],[2,7,2,8],[3,2,3,3],[3,7,3,8],[4,2,4,3],[4,6,4,8],[5,1,7,1],[5,2,5,3],[5,7,5,8],[6,2,6,3],[6,7,6,8],[7,2,7,3],[7,6,7,8],[20,6,20,9],[21,1,21,4],[29,6,29,9],[31,1,31,4],[36,6,36,9],[38,1,38,4],[42,6,42,9],[44,1,44,4],[48,6,48,9],[52,1,52,4],[55,6,55,9]]}
[null,"Personiskais ikmēneša budžets"]
[]
[null,"PROGNOZĒTIE MĒNEŠA IENĀKUMI","Ienākumi 1",null,{"v":2500,"d":"2,500 EUR"},null,"KOPĒJIE PROGNOZĒTIE IZDEVUMI ","(Prognozētie ienākumi mīnus izdevumi)",null,{"$f":"SUM(C21,C31,C38,C44,C52,C62,H20,H29,H36,H42,H48,H55)","v":{"v":2060,"d":"2,060 EUR"}}]
[null,null,"Papildu ienākumi",null,{"v":500,"d":"500 EUR"},null,"KOPĒJIE FAKTISKIE IZDEVUMI ","(Faktiskie ienākumi mīnus izdevumi)",null,{"$f":"SUM(D21,D31,D38,D44,D52,D62,I20,I29,I36,I42,I48,I55)","v":{"v":2040,"d":"2,040 EUR"}}]
[null,null,"Kopējie mēneša ienākumi",null,{"$f":"SUM(E3:E4)","v":{"v":3000,"d":"3,000 EUR"}},null,"Kopējo izdevumu starpība",null,null,{"$f":"SUM(E21,E31,E38,E44,E52,E62,J20,J29,J36,J42,J48,J55)","v":{"v":20,"d":"20 EUR"}}]
[null,"FAKTISKIE MĒNEŠA IENĀKUMI","Ienākumi 1",null,{"v":2500,"d":"2,500 EUR"},null,"PROGNOZĒTĀ BILANCE","(Prognozētie ienākumi mīnus izdevumi)",null,{"$f":"E5-J3","v":{"v":940,"d":"940 EUR"}}]
[null,null,"Papildu ienākumi",null,{"v":500,"d":"500 EUR"},null,"FAKTISKĀ BILANCE","(Faktiskie ienākumi mīnus izdevumi)",null,{"$f":"E8-J4","v":{"v":960,"d":"960 EUR"}}]
[null,null,"Kopējie mēneša ienākumi",null,{"$f":"SUM(E6:E7)","v":{"v":3000,"d":"3,000 EUR"}},null,"BILANCES STARPĪBA (faktiskā mīnus prognozētā)",null,null,{"$f":"J7-J6","v":{"v":20,"d":"20 EUR"}}]
[]
[null,"MĀJOKLIS","Prognozētās izmaksas","Faktiskās izmaksas","Starpība",null,"IZKLAIDE","Prognozētās izmaksas","Faktiskās izmaksas","Starpība"]
[null,"Hipotekārais kredīts vai īres maksa",{"v":1500,"d":"1,500 EUR"},{"v":1400,"d":"1,400 EUR"},{"$f":"Mājoklis[[#This Row],[Prognozētās izmaksas]]-Mājoklis[[#This Row],[Faktiskās izmaksas]]","v":{"v":100,"d":"100 EUR"}},null,"Video/DVD",{"v":0,"d":"0 EUR"},{"v":50,"d":"50 EUR"},{"$f":"Izklaide[[#This Row],[Prognozētās izmaksas]]-Izklaide[[#This Row],[Faktiskās izmaksas]]","v":{"v":-50,"d":"-50 EUR"}}]
[null,"Tālrunis",{"v":60,"d":"60 EUR"},{"v":100,"d":"100 EUR"},{"$f":"Mājoklis[[#This Row],[Prognozētās izmaksas]]-Mājoklis[[#This Row],[Faktiskās izmaksas]]","v":{"v":-40,"d":"-40 EUR"}},null,"CD",null,null,{"$f":"Izklaide[[#This Row],[Prognozētās izmaksas]]-Izklaide[[#This Row],[Faktiskās izmaksas]]","v":{"v":0,"d":"0 EUR"}}]
[null,"Elektrība",{"v":50,"d":"50 EUR"},{"v":60,"d":"60 EUR"},{"$f":"Mājoklis[[#This Row],[Prognozētās izmaksas]]-Mājoklis[[#This Row],[Faktiskās izmaksas]]","v":{"v":-10,"d":"-10 EUR"}},null,"Filmas",null,null,{"$f":"Izklaide[[#This Row],[Prognozētās izmaksas]]-Izklaide[[#This Row],[Faktiskās izmaksas]]","v":{"v":0,"d":"0 EUR"}}]
[null,"Gāze",{"v":200,"d":"200 EUR"},{"v":180,"d":"180 EUR"},{"$f":"Mājoklis[[#This Row],[Prognozētās izmaksas]]-Mājoklis[[#This Row],[Faktiskās izmaksas]]","v":{"v":20,"d":"20 EUR"}},null,"Koncerti",null,null,{"$f":"Izklaide[[#This Row],[Prognozētās izmaksas]]-Izklaide[[#This Row],[Faktiskās izmaksas]]","v":{"v":0,"d":"0 EUR"}}]
[null,"Ūdens un kanalizācija",null,null,{"$f":"Mājoklis[[#This Row],[Prognozētās izmaksas]]-Mājoklis[[#This Row],[Faktiskās izmaksas]]","v":{"v":0,"d":"0 EUR"}},null,"Sporta pasākumi",null,null,{"$f":"Izklaide[[#This Row],[Prognozētās izmaksas]]-Izklaide[[#This Row],[Faktiskās izmaksas]]","v":{"v":0,"d":"0 EUR"}}]
[null,"Kabeļtelevīzija",null,null,{"$f":"Mājoklis[[#This Row],[Prognozētās izmaksas]]-Mājoklis[[#This Row],[Faktiskās izmaksas]]","v":{"v":0,"d":"0 EUR"}},null,"Teātris",null,null,{"$f":"Izklaide[[#This Row],[Prognozētās izmaksas]]-Izklaide[[#This Row],[Faktiskās izmaksas]]","v":{"v":0,"d":"0 EUR"}}]
[null,"Atkritumu izvešana",null,null,{"$f":"Mājoklis[[#This Row],[Prognozētās izmaksas]]-Mājoklis[[#This Row],[Faktiskās izmaksas]]","v":{"v":0,"d":"0 EUR"}},null,"Citi",null,null,{"$f":"Izklaide[[#This Row],[Prognozētās izmaksas]]-Izklaide[[#This Row],[Faktiskās izmaksas]]","v":{"v":0,"d":"0 EUR"}}]
[null,"Apkope vai remonts",null,null,{"$f":"Mājoklis[[#This Row],[Prognozētās izmaksas]]-Mājoklis[[#This Row],[Faktiskās izmaksas]]","v":{"v":0,"d":"0 EUR"}},null,"Citi",null,null,{"$f":"Izklaide[[#This Row],[Prognozētās izmaksas]]-Izklaide[[#This Row],[Faktiskās izmaksas]]","v":{"v":0,"d":"0 EUR"}}]
[null,"Materiāli",null,null,{"$f":"Mājoklis[[#This Row],[Prognozētās izmaksas]]-Mājoklis[[#This Row],[Faktiskās izmaksas]]","v":{"v":0,"d":"0 EUR"}},null,"Citi",null,null,{"$f":"Izklaide[[#This Row],[Prognozētās izmaksas]]-Izklaide[[#This Row],[Faktiskās izmaksas]]","v":{"v":0,"d":"0 EUR"}}]
[null,"Citi",null,null,{"$f":"Mājoklis[[#This Row],[Prognozētās izmaksas]]-Mājoklis[[#This Row],[Faktiskās izmaksas]]","v":{"v":0,"d":"0 EUR"}},null,"Kopsumma",{"$f":"SUBTOTAL(109,Izklaide[Prognozētās izmaksas])","v":{"v":0,"d":"0 EUR"}},{"$f":"SUBTOTAL(109,Izklaide[Faktiskās izmaksas])","v":{"v":50,"d":"50 EUR"}},{"$f":"SUBTOTAL(109,Izklaide[Starpība])","v":{"v":-50,"d":"-50 EUR"}}]
[null,"Kopsumma",{"$f":"SUBTOTAL(109,Mājoklis[Prognozētās izmaksas])","v":{"v":1810,"d":"1,810 EUR"}},{"$f":"SUBTOTAL(109,Mājoklis[Faktiskās izmaksas])","v":{"v":1740,"d":"1,740 EUR"}},{"$f":"SUBTOTAL(109,Mājoklis[Starpība])","v":{"v":70,"d":"70 EUR"}}]
[{"$nulls":6},"AIZDEVUMI","Prognozētās izmaksas","Faktiskās izmaksas","Starpība"]
[null,"TRANSPORTS","Prognozētās izmaksas","Faktiskās izmaksas","Starpība",null,"Personisks",null,null,{"$f":"Aizdevumi[[#This Row],[Prognozētās izmaksas]]-Aizdevumi[[#This Row],[Faktiskās izmaksas]]","v":{"v":0,"d":"0 EUR"}}]
[null,"Maksājums par transportlīdzekli",{"v":250,"d":"250 EUR"},{"v":250,"d":"250 EUR"},{"$f":"Transports[[#This Row],[Prognozētās izmaksas]]-Transports[[#This Row],[Faktiskās izmaksas]]","v":{"v":0,"d":"0 EUR"}},null,"Mācību",null,null,{"$f":"Aizdevumi[[#This Row],[Prognozētās izmaksas]]-Aizdevumi[[#This Row],[Faktiskās izmaksas]]","v":{"v":0,"d":"0 EUR"}}]
[null,"Maksa par braucienu ar autobusu/taksometru",null,null,{"$f":"Transports[[#This Row],[Prognozētās izmaksas]]-Transports[[#This Row],[Faktiskās izmaksas]]","v":{"v":0,"d":"0 EUR"}},null,"Kredītkarte",null,null,{"$f":"Aizdevumi[[#This Row],[Prognozētās izmaksas]]-Aizdevumi[[#This Row],[Faktiskās izmaksas]]","v":{"v":0,"d":"0 EUR"}}]
[null,"Apdrošināšana",null,null,{"$f":"Transports[[#This Row],[Prognozētās izmaksas]]-Transports[[#This Row],[Faktiskās izmaksas]]","v":{"v":0,"d":"0 EUR"}},null,"Kredītkarte",null,null,{"$f":"Aizdevumi[[#This Row],[Prognozētās izmaksas]]-Aizdevumi[[#This Row],[Faktiskās izmaksas]]","v":{"v":0,"d":"0 EUR"}}]
[null,"Licencēšana",null,null,{"$f":"Transports[[#This Row],[Prognozētās izmaksas]]-Transports[[#This Row],[Faktiskās izmaksas]]","v":{"v":0,"d":"0 EUR"}},null,"Kredītkarte",null,null,{"$f":"Aizdevumi[[#This Row],[Prognozētās izmaksas]]-Aizdevumi[[#This Row],[Faktiskās izmaksas]]","v":{"v":0,"d":"0 EUR"}}]
[null,"Degviela",null,null,{"$f":"Transports[[#This Row],[Prognozētās izmaksas]]-Transports[[#This Row],[Faktiskās izmaksas]]","v":{"v":0,"d":"0 EUR"}},null,"Citi",null,null,{"$f":"Aizdevumi[[#This Row],[Prognozētās izmaksas]]-Aizdevumi[[#This Row],[Faktiskās izmaksas]]","v":{"v":0,"d":"0 EUR"}}]
[null,"Uzturēšana",null,null,{"$f":"Transports[[#This Row],[Prognozētās izmaksas]]-Transports[[#This Row],[Faktiskās izmaksas]]","v":{"v":0,"d":"0 EUR"}},null,"Kopsumma",{"$f":"SUBTOTAL(109,Aizdevumi[Prognozētās izmaksas])","v":{"v":0,"d":"0 EUR"}},{"$f":"SUBTOTAL(109,Aizdevumi[Faktiskās izmaksas])","v":{"v":0,"d":"0 EUR"}},{"$f":"SUBTOTAL(109,Aizdevumi[Starpība])","v":{"v":0,"d":"0 EUR"}}]
[null,"Citi",null,null,{"$f":"Transports[[#This Row],[Prognozētās izmaksas]]-Transports[[#This Row],[Faktiskās izmaksas]]","v":{"v":0,"d":"0 EUR"}}]
[null,"Kopsumma",{"$f":"SUBTOTAL(109,Transports[Prognozētās izmaksas])","v":{"v":250,"d":"250 EUR"}},{"$f":"SUBTOTAL(109,Transports[Faktiskās izmaksas])","v":{"v":250,"d":"250 EUR"}},{"$f":"SUBTOTAL(109,Transports[Starpība])","v":{"v":0,"d":"0 EUR"}},null,"NODOKĻI","Prognozētās izmaksas","Faktiskās izmaksas","Starpība"]
[{"$nulls":6},"Federālie",null,null,{"$f":"Nodokļi[[#This Row],[Prognozētās izmaksas]]-Nodokļi[[#This Row],[Faktiskās izmaksas]]","v":{"v":0,"d":"0 EUR"}}]
[null,"APDROŠINĀŠANA","Prognozētās izmaksas","Faktiskās izmaksas","Starpība",null,"Valsts/reģions",null,null,{"$f":"Nodokļi[[#This Row],[Prognozētās izmaksas]]-Nodokļi[[#This Row],[Faktiskās izmaksas]]","v":{"v":0,"d":"0 EUR"}}]
[null,"Mājas",null,null,{"$f":"Apdrošināšana[[#This Row],[Prognozētās izmaksas]]-Apdrošināšana[[#This Row],[Faktiskās izmaksas]]","v":{"v":0,"d":"0 EUR"}},null,"Vietējie",null,null,{"$f":"Nodokļi[[#This Row],[Prognozētās izmaksas]]-Nodokļi[[#This Row],[Faktiskās izmaksas]]","v":{"v":0,"d":"0 EUR"}}]
[null,"Veselība",null,null,{"$f":"Apdrošināšana[[#This Row],[Prognozētās izmaksas]]-Apdrošināšana[[#This Row],[Faktiskās izmaksas]]","v":{"v":0,"d":"0 EUR"}},null,"Citi",null,null,{"$f":"Nodokļi[[#This Row],[Prognozētās izmaksas]]-Nodokļi[[#This Row],[Faktiskās izmaksas]]","v":{"v":0,"d":"0 EUR"}}]
[null,"Dzīvība",null,null,{"$f":"Apdrošināšana[[#This Row],[Prognozētās izmaksas]]-Apdrošināšana[[#This Row],[Faktiskās izmaksas]]","v":{"v":0,"d":"0 EUR"}},null,"Kopsumma",{"$f":"SUBTOTAL(109,Nodokļi[Prognozētās izmaksas])","v":{"v":0,"d":"0 EUR"}},{"$f":"SUBTOTAL(109,Nodokļi[Faktiskās izmaksas])","v":{"v":0,"d":"0 EUR"}},{"$f":"SUBTOTAL(109,Nodokļi[Starpība])","v":{"v":0,"d":"0 EUR"}}]
[null,"Citi",null,null,{"$f":"Apdrošināšana[[#This Row],[Prognozētās izmaksas]]-Apdrošināšana[[#This Row],[Faktiskās izmaksas]]","v":{"v":0,"d":"0 EUR"}}]
[null,"Kopsumma",{"$f":"SUBTOTAL(109,Apdrošināšana[Prognozētās izmaksas])","v":{"v":0,"d":"0 EUR"}},{"$f":"SUBTOTAL(109,Apdrošināšana[Faktiskās izmaksas])","v":{"v":0,"d":"0 EUR"}},{"$f":"SUBTOTAL(109,Apdrošināšana[Starpība])","v":{"v":0,"d":"0 EUR"}},null,"IETAUPĪJUMI VAI IEGULDĪJUMI","Prognozētās izmaksas","Faktiskās izmaksas","Starpība"]
[{"$nulls":6},"Pensijas konts",null,null,{"$f":"IetaupījumiVaiIeguldījumi[[#This Row],[Prognozētās izmaksas]]-IetaupījumiVaiIeguldījumi[[#This Row],[Faktiskās izmaksas]]","v":{"v":0,"d":"0 EUR"}}]
[null,"PĀRTIKA","Prognozētās izmaksas","Faktiskās izmaksas","Starpība",null,"Ieguldījumu konts",null,null,{"$f":"IetaupījumiVaiIeguldījumi[[#This Row],[Prognozētās izmaksas]]-IetaupījumiVaiIeguldījumi[[#This Row],[Faktiskās izmaksas]]","v":{"v":0,"d":"0 EUR"}}]
[null,"Pārtikas preces",null,null,{"$f":"Pārtika[[#This Row],[Prognozētās izmaksas]]-Pārtika[[#This Row],[Faktiskās izmaksas]]","v":{"v":0,"d":"0 EUR"}},null,"Citi",null,null,{"$f":"IetaupījumiVaiIeguldījumi[[#This Row],[Prognozētās izmaksas]]-IetaupījumiVaiIeguldījumi[[#This Row],[Faktiskās izmaksas]]","v":{"v":0,"d":"0 EUR"}}]
[null,"Vakariņas restorānā",null,null,{"$f":"Pārtika[[#This Row],[Prognozētās izmaksas]]-Pārtika[[#This Row],[Faktiskās izmaksas]]","v":{"v":0,"d":"0 EUR"}},null,"Kopsumma",{"$f":"SUBTOTAL(109,IetaupījumiVaiIeguldījumi[Prognozētās izmaksas])","v":{"v":0,"d":"0 EUR"}},{"$f":"SUBTOTAL(109,IetaupījumiVaiIeguldījumi[Faktiskās izmaksas])","v":{"v":0,"d":"0 EUR"}},{"$f":"SUBTOTAL(109,IetaupījumiVaiIeguldījumi[Starpība])","v":{"v":0,"d":"0 EUR"}}]
[null,"Citi",null,null,{"$f":"Pārtika[[#This Row],[Prognozētās izmaksas]]-Pārtika[[#This Row],[Faktiskās izmaksas]]","v":{"v":0,"d":"0 EUR"}}]
[null,"Kopsumma",{"$f":"SUBTOTAL(109,Pārtika[Prognozētās izmaksas])","v":{"v":0,"d":"0 EUR"}},{"$f":"SUBTOTAL(109,Pārtika[Faktiskās izmaksas])","v":{"v":0,"d":"0 EUR"}},{"$f":"SUBTOTAL(109,Pārtika[Starpība])","v":{"v":0,"d":"0 EUR"}},null,"DĀVANAS UN ZIEDOJUMI","Prognozētās izmaksas","Faktiskās izmaksas","Starpība"]
[{"$nulls":6},"Labdarība 1",null,null,{"$f":"DāvanasUnZiedojumi[[#This Row],[Prognozētās izmaksas]]-DāvanasUnZiedojumi[[#This Row],[Faktiskās izmaksas]]","v":{"v":0,"d":"0 EUR"}}]
[null,"MĀJDZĪVNIEKI","Prognozētās izmaksas","Faktiskās izmaksas","Starpība",null,"Labdarība 2",null,null,{"$f":"DāvanasUnZiedojumi[[#This Row],[Prognozētās izmaksas]]-DāvanasUnZiedojumi[[#This Row],[Faktiskās izmaksas]]","v":{"v":0,"d":"0 EUR"}}]
[null,"Pārtika",null,null,{"$f":"Mājdzīvnieki[[#This Row],[Prognozētās izmaksas]]-Mājdzīvnieki[[#This Row],[Faktiskās izmaksas]]","v":{"v":0,"d":"0 EUR"}},null,"Labdarība 3",null,null,{"$f":"DāvanasUnZiedojumi[[#This Row],[Prognozētās izmaksas]]-DāvanasUnZiedojumi[[#This Row],[Faktiskās izmaksas]]","v":{"v":0,"d":"0 EUR"}}]
[null,"Medikamenti",null,null,{"$f":"Mājdzīvnieki[[#This Row],[Prognozētās izmaksas]]-Mājdzīvnieki[[#This Row],[Faktiskās izmaksas]]","v":{"v":0,"d":"0 EUR"}},null,"Kopsumma",{"$f":"SUBTOTAL(109,DāvanasUnZiedojumi[Prognozētās izmaksas])","v":{"v":0,"d":"0 EUR"}},{"$f":"SUBTOTAL(109,DāvanasUnZiedojumi[Faktiskās izmaksas])","v":{"v":0,"d":"0 EUR"}},{"$f":"SUBTOTAL(109,DāvanasUnZiedojumi[Starpība])","v":{"v":0,"d":"0 EUR"}}]
[null,"Kopšana",null,null,{"$f":"Mājdzīvnieki[[#This Row],[Prognozētās izmaksas]]-Mājdzīvnieki[[#This Row],[Faktiskās izmaksas]]","v":{"v":0,"d":"0 EUR"}}]
[null,"Rotaļlietas",null,null,{"$f":"Mājdzīvnieki[[#This Row],[Prognozētās izmaksas]]-Mājdzīvnieki[[#This Row],[Faktiskās izmaksas]]","v":{"v":0,"d":"0 EUR"}},null,"JURIDISKIE PAKALPOJUMI","Prognozētās izmaksas","Faktiskās izmaksas","Starpība"]
[null,"Citi",null,null,{"$f":"Mājdzīvnieki[[#This Row],[Prognozētās izmaksas]]-Mājdzīvnieki[[#This Row],[Faktiskās izmaksas]]","v":{"v":0,"d":"0 EUR"}},null,"Advokāts",null,null,{"$f":"Juridiskie_pakalpojumi[[#This Row],[Prognozētās izmaksas]]-Juridiskie_pakalpojumi[[#This Row],[Faktiskās izmaksas]]","v":{"v":0,"d":"0 EUR"}}]
[null,"Kopsumma",{"$f":"SUBTOTAL(109,Mājdzīvnieki[Prognozētās izmaksas])","v":{"v":0,"d":"0 EUR"}},{"$f":"SUBTOTAL(109,Mājdzīvnieki[Faktiskās izmaksas])","v":{"v":0,"d":"0 EUR"}},{"$f":"SUBTOTAL(109,Mājdzīvnieki[Starpība])","v":{"v":0,"d":"0 EUR"}},null,"Alimenti",null,null,{"$f":"Juridiskie_pakalpojumi[[#This Row],[Prognozētās izmaksas]]-Juridiskie_pakalpojumi[[#This Row],[Faktiskās izmaksas]]","v":{"v":0,"d":"0 EUR"}}]
[{"$nulls":6},"Maksājumi ar aizturējuma tiesībām vai nolēmumu",null,null,{"$f":"Juridiskie_pakalpojumi[[#This Row],[Prognozētās izmaksas]]-Juridiskie_pakalpojumi[[#This Row],[Faktiskās izmaksas]]","v":{"v":0,"d":"0 EUR"}}]
[null,"PERSONISKĀ HIGIĒNA","Prognozētās izmaksas","Faktiskās izmaksas","Starpība",null,"Citi",null,null,{"$f":"Juridiskie_pakalpojumi[[#This Row],[Prognozētās izmaksas]]-Juridiskie_pakalpojumi[[#This Row],[Faktiskās izmaksas]]","v":{"v":0,"d":"0 EUR"}}]
[null,"Medikamenti",null,null,{"$f":"Personiskā_higiēna[[#This Row],[Prognozētās izmaksas]]-Personiskā_higiēna[[#This Row],[Faktiskās izmaksas]]","v":{"v":0,"d":"0 EUR"}},null,"Kopsumma",{"$f":"SUBTOTAL(109,Juridiskie_pakalpojumi[Prognozētās izmaksas])","v":{"v":0,"d":"0 EUR"}},{"$f":"SUBTOTAL(109,Juridiskie_pakalpojumi[Faktiskās izmaksas])","v":{"v":0,"d":"0 EUR"}},{"$f":"SUBTOTAL(109,Juridiskie_pakalpojumi[Starpība])","v":{"v":0,"d":"0 EUR"}}]
[null,"Mati/nagi",null,null,{"$f":"Personiskā_higiēna[[#This Row],[Prognozētās izmaksas]]-Personiskā_higiēna[[#This Row],[Faktiskās izmaksas]]","v":{"v":0,"d":"0 EUR"}}]
[null,"Apģērbs",null,null,{"$f":"Personiskā_higiēna[[#This Row],[Prognozētās izmaksas]]-Personiskā_higiēna[[#This Row],[Faktiskās izmaksas]]","v":{"v":0,"d":"0 EUR"}}]
[null,"Ķīmiskā tīrītava",null,null,{"$f":"Personiskā_higiēna[[#This Row],[Prognozētās izmaksas]]-Personiskā_higiēna[[#This Row],[Faktiskās izmaksas]]","v":{"v":0,"d":"0 EUR"}}]
[null,"Sporta klubs",null,null,{"$f":"Personiskā_higiēna[[#This Row],[Prognozētās izmaksas]]-Personiskā_higiēna[[#This Row],[Faktiskās izmaksas]]","v":{"v":0,"d":"0 EUR"}}]
[null,"Organizācijas nodevas vai maksājumi",null,null,{"$f":"Personiskā_higiēna[[#This Row],[Prognozētās izmaksas]]-Personiskā_higiēna[[#This Row],[Faktiskās izmaksas]]","v":{"v":0,"d":"0 EUR"}}]
[null,"Cits",null,null,{"$f":"Personiskā_higiēna[[#This Row],[Prognozētās izmaksas]]-Personiskā_higiēna[[#This Row],[Faktiskās izmaksas]]","v":{"v":0,"d":"0 EUR"}}]
[null,"Kopsumma",{"$f":"SUBTOTAL(109,Personiskā_higiēna[Prognozētās izmaksas])","v":{"v":0,"d":"0 EUR"}},{"$f":"SUBTOTAL(109,Personiskā_higiēna[Faktiskās izmaksas])","v":{"v":0,"d":"0 EUR"}},{"$f":"SUBTOTAL(109,Personiskā_higiēna[Starpība])","v":{"v":0,"d":"0 EUR"}}]